fUSD/lending_fUSD_20260530
["ID","MTS","AMOUNT","RATE_DAILY","PERIOD"]
[423455022,1780133440000,-14530.77591841,0.000147,2]
[423455024,1780133440000,-1700.0,0.000147,5]
[423455025,1780133440000,-255.0,0.00014702,2]
[423455027,1780133440000,-481.78,0.00014711,2]
[423455009,1780133440000,-500.0,0.00014688,2]
[423455016,1780133440000,-222504.5207555,0.00014689,2]
[423455007,1780133440000,-500.0,0.00014688,2]
[423454989,1780133440000,-500.0,0.00014688,2]
[423455002,1780133440000,-4324.53,0.00014688,2]
[423454979,1780133440000,-500.0,0.00014688,2]
[423454980,1780133440000,-500.0,0.00014688,2]
[423454986,1780133440000,-500.0,0.00014688,2]
[423454983,1780133440000,-500.0,0.00014688,2]
[423454984,1780133440000,-500.0,0.00014688,2]
[423454981,1780133440000,-500.0,0.00014688,2]
[423454982,1780133440000,-500.0,0.00014688,2]
[423454985,1780133440000,-500.0,0.00014688,2]
[423454987,1780133440000,-500.0,0.00014688,2]
[423454988,1780133440000,-497.78987791,0.00014688,2]
[423455006,1780133440000,-500.0,0.00014688,2]
[423454991,1780133440000,-500.0,0.00014688,2]
[423454992,1780133440000,-500.0,0.00014688,2]
[423454994,1780133440000,-500.0,0.00014688,2]
[423454995,1780133440000,-500.0,0.00014688,2]
[423454996,1780133440000,-500.0,0.00014688,2]
[423454993,1780133440000,-500.0,0.00014688,2]
[423454997,1780133440000,-500.0,0.00014688,2]
[423454998,1780133440000,-312.82,0.00014688,2]
[423454999,1780133440000,-4324.53,0.00014688,2]
[423455001,1780133440000,-4324.53,0.00014688,2]
[423455000,1780133440000,-4324.53,0.00014688,2]
[423454990,1780133440000,-500.0,0.00014688,2]
[423455026,1780133440000,-150.0,0.00014705,2]
[423455028,1780133440000,-151.0,0.00014711,2]
[423455031,1780133440000,-151.0,0.00014716,2]
[423455057,1780133440000,-150.0,0.00014836,2]
[423455058,1780133440000,-150.0,0.00014836,2]
[423455059,1780133440000,-194.0,0.00014838,2]
[423455060,1780133440000,-2000.0,0.0001485,2]
[423455061,1780133440000,-2000.0,0.0001485,2]
[423455062,1780133440000,-2000.0,0.0001485,2]
[423455065,1780133440000,-2000.0,0.0001485,2]
[423455063,1780133440000,-2000.0,0.0001485,2]
[423455064,1780133440000,-2000.0,0.0001485,2]
[423455066,1780133440000,-150.0,0.00014853,2]
[423455067,1780133440000,-500.0,0.00014856,2]
[423455069,1780133440000,-1695.0,0.0001486,5]
[423455075,1780133440000,-500.0,0.00014898,2]
[423455071,1780133440000,-163.0,0.0001488,2]
[423455073,1780133440000,-150.0,0.00014886,2]
[423455070,1780133440000,-200.0,0.00014873,2]
[423455072,1780133440000,-10000.0,0.00014883,2]
[423455074,1780133440000,-150.0,0.00014893,2]
[423455076,1780133440000,-10000.0,0.000149,2]
[423455077,1780133440000,-200.0,0.000149,2]
[423455030,1780133440000,-151.0,0.00014714,2]
[423455056,1780133440000,-150.0,0.0001482,2]
[423455054,1780133440000,-1700.0,0.000148,5]
[423455068,1780133440000,-2114.0,0.0001486,5]
[423455047,1780133440000,-420.0,0.00014783,2]
[423455029,1780133440000,-151.0,0.00014713,2]
[423455055,1780133440000,-150.0,0.0001482,2]
[423455032,1780133440000,-150.0,0.0001472,2]
[423455033,1780133440000,-2000.0,0.00014728,2]
[423455034,1780133440000,-306.89,0.00014728,2]
[423455036,1780133440000,-2473.11322098,0.00014729,2]
[423455041,1780133440000,-4687.320992,0.0001476,2]
[423455037,1780133440000,-150.0,0.00014737,2]
[423455043,1780133440000,-4687.320992,0.0001476,2]
[423455038,1780133440000,-961.21,0.00014738,2]
[423455042,1780133440000,-4687.320992,0.0001476,2]
[423455035,1780133440000,-151.0,0.00014728,2]
[423455050,1780133440000,-211.51532557,0.000148,2]
[423455040,1780133440000,-3743.12247816,0.0001476,2]
[423455044,1780133440000,-4687.320992,0.0001476,2]
[423455045,1780133440000,-3142.07419183,0.00014767,2]
[423455049,1780133440000,-150.0,0.00014799,2]
[423455046,1780133440000,-4966.3817695,0.00014767,2]
[423455051,1780133440000,-710.71429061,0.000148,2]
[423455052,1780133440000,-5340.632,0.000148,2]
[423455048,1780133440000,-150.0,0.00014786,2]
[423455039,1780133440000,-150.0,0.00014753,2]
[423455053,1780133440000,-397.488,0.000148,2]
[423455116,1780133441000,-151.0,0.00014996,2]
[423455117,1780133441000,-151.0,0.00014997,2]
[423455111,1780133441000,-150.0,0.00014986,2]
[423455119,1780133441000,-500.0,0.00014998,2]
[423455115,1780133441000,-928.0,0.00014988,2]
[423455114,1780133441000,-3550.0,0.00014988,2]
[423455109,1780133441000,-150.0,0.00014986,2]
[423455112,1780133441000,-525.0,0.00014988,2]
[423455110,1780133441000,-150.0,0.00014986,2]
[423455107,1780133441000,-150.0,0.00014986,2]
[423455120,1780133441000,-500.0,0.00014998,2]
[423455113,1780133441000,-1226.0,0.00014988,2]
[423455123,1780133441000,-500.0,0.00014998,2]
[423455132,1780133441000,-500.0,0.00014999,2]
[423455118,1780133441000,-500.0,0.00014998,2]
[423455121,1780133441000,-500.0,0.00014998,2]
[423455124,1780133441000,-500.0,0.00014998,2]
[423455125,1780133441000,-583.97,0.00014999,2]
[423455127,1780133441000,-500.0,0.00014999,2]
[423455126,1780133441000,-500.0,0.00014999,2]
[423455134,1780133441000,-500.0,0.00014999,2]
[423455129,1780133441000,-500.0,0.00014999,2]
[423455131,1780133441000,-500.0,0.00014999,2]
[423455128,1780133441000,-500.0,0.00014999,2]
[423455130,1780133441000,-500.0,0.00014999,2]
[423455106,1780133441000,-150.0,0.00014986,2]
[423455122,1780133441000,-4324.53,0.00014998,2]
[423455108,1780133441000,-150.0,0.00014986,2]
[423455085,1780133441000,-4966.3817695,0.000149,2]
[423455104,1780133441000,-150.0,0.00014953,2]
[423455133,1780133441000,-500.0,0.00014999,2]
[423455078,1780133441000,-7162.76763208,0.000149,3]
[423455079,1780133441000,-340.88316099,0.000149,2]
[423455080,1780133441000,-1353.79095262,0.000149,2]
[423455081,1780133441000,-200.0,0.000149,2]
[423455084,1780133441000,-1700.0,0.000149,5]
[423455082,1780133441000,-3142.07419183,0.000149,2]
[423455083,1780133441000,-200.0,0.000149,2]
[423455087,1780133441000,-2473.11322098,0.000149,2]
[423455086,1780133441000,-211.51532557,0.000149,2]
[423455088,1780133441000,-1000.0,0.000149,2]
[423455089,1780133441000,-1000.0,0.000149,2]
[423455105,1780133441000,-150.0,0.00014986,2]
[423455090,1780133441000,-1000.0,0.000149,2]
[423455093,1780133441000,-290.85141829,0.000149,2]
[423455094,1780133441000,-9516.77598403,0.000149,2]
[423455095,1780133441000,-500.0,0.00014909,2]
[423455091,1780133441000,-1000.0,0.000149,2]
[423455097,1780133441000,-500.0,0.00014909,2]
[423455098,1780133441000,-663.02443329,0.00014913,2]
[423455099,1780133441000,-150.0,0.0001492,2]
[423455096,1780133441000,-4324.53,0.00014909,2]
[423455100,1780133441000,-400.0,0.00014925,2]
[423455101,1780133441000,-150.0,0.00014925,2]
[423455102,1780133441000,-400.0,0.00014925,2]
[423455103,1780133441000,-500.0,0.00014938,2]
[423455092,1780133441000,-448.14641804,0.000149,2]
[423455135,1780133441000,-500.0,0.00014999,2]
[423455154,1780133441000,-500.0,0.00014999,2]
[423455137,1780133441000,-293.11838374,0.00014999,2]
[423455166,1780133441000,-618.101343,0.00014999,2]
[423455167,1780133441000,-618.101343,0.00014999,2]
[423455173,1780133441000,-500.0,0.00014999,2]
[423455171,1780133441000,-193.519007,0.00014999,2]
[423455170,1780133441000,-193.519007,0.00014999,2]
[423455172,1780133441000,-500.0,0.00014999,2]
[423455176,1780133441000,-207.9347959,0.00014999,2]
[423455178,1780133441000,-500.0,0.00014999,2]
[423455175,1780133441000,-500.0,0.00014999,2]
[423455181,1780133441000,-500.0,0.00014999,2]
[423455180,1780133441000,-500.0,0.00014999,2]
[423455182,1780133441000,-500.0,0.00014999,2]
[423455165,1780133441000,-618.101343,0.00014999,2]
[423455183,1780133441000,-500.0,0.00014999,2]
[423455184,1780133441000,-500.0,0.00014999,2]
[423455179,1780133441000,-500.0,0.00014999,2]
[423455185,1780133441000,-500.0,0.00014999,2]
[423455186,1780133441000,-500.0,0.00014999,2]
[423455188,1780133441000,-500.0,0.00014999,2]
[423455189,1780133441000,-500.0,0.00014999,2]
[423455187,1780133441000,-500.0,0.00014999,2]
[423455193,1780133441000,-500.0,0.00014999,2]
[423455191,1780133441000,-500.0,0.00014999,2]
[423455194,1780133441000,-500.0,0.00014999,2]
[423455190,1780133441000,-500.0,0.00014999,2]
[423455136,1780133441000,-500.0,0.00014999,2]
[423455177,1780133441000,-500.0,0.00014999,2]
[423455168,1780133441000,-193.519007,0.00014999,2]
[423455174,1780133441000,-500.0,0.00014999,2]
[423455164,1780133441000,-618.101343,0.00014999,2]
[423455138,1780133441000,-500.0,0.00014999,2]
[423455139,1780133441000,-500.0,0.00014999,2]
[423455144,1780133441000,-378.33046541,0.00014999,2]
[423455141,1780133441000,-500.0,0.00014999,2]
[423455140,1780133441000,-500.0,0.00014999,2]
[423455169,1780133441000,-193.519007,0.00014999,2]
[423455143,1780133441000,-500.0,0.00014999,2]
[423455142,1780133441000,-500.0,0.00014999,2]
[423455146,1780133441000,-151.0,0.00014999,2]
[423455147,1780133441000,-151.0,0.00014999,2]
[423455145,1780133441000,-576.72,0.00014999,2]
[423455149,1780133441000,-151.0,0.00014999,2]
[423455151,1780133441000,-500.0,0.00014999,2]
[423455148,1780133441000,-153.422563,0.00014999,2]
[423455192,1780133441000,-500.0,0.00014999,2]
[423455152,1780133441000,-500.0,0.00014999,2]
[423455163,1780133441000,-3557.79982436,0.00014999,2]
[423455161,1780133441000,-500.0,0.00014999,2]
[423455162,1780133441000,-298.62,0.00014999,2]
[423455160,1780133441000,-500.0,0.00014999,2]
[423455156,1780133441000,-500.0,0.00014999,2]
[423455158,1780133441000,-500.0,0.00014999,2]
[423455157,1780133441000,-500.0,0.00014999,2]
[423455155,1780133441000,-500.0,0.00014999,2]
[423455159,1780133441000,-500.0,0.00014999,2]
[423455153,1780133441000,-500.0,0.00014999,2]
[423455150,1780133441000,-151.0,0.00014999,2]
[423455205,1780133442000,-500.0,0.00014999,2]
[423455209,1780133442000,-500.0,0.00014999,2]
[423455208,1780133442000,-298.342053,0.00014999,2]
[423455204,1780133442000,-500.0,0.00014999,2]
[423455207,1780133442000,-500.0,0.00014999,2]
[423455210,1780133442000,-500.0,0.00014999,2]
[423455206,1780133442000,-500.0,0.00014999,2]
[423455195,1780133442000,-500.0,0.00014999,2]
[423455201,1780133442000,-500.0,0.00014999,2]
[423455203,1780133442000,-500.0,0.00014999,2]
[423455202,1780133442000,-500.0,0.00014999,2]
[423455200,1780133442000,-500.0,0.00014999,2]
[423455197,1780133442000,-500.0,0.00014999,2]
[423455196,1780133442000,-500.0,0.00014999,2]
[423455211,1780133442000,-500.0,0.00014999,2]
[423455199,1780133442000,-500.0,0.00014999,2]
[423455216,1780133442000,-4324.53,0.00014999,2]
[423455198,1780133442000,-500.0,0.00014999,2]
[423455217,1780133442000,-4324.53,0.00014999,2]
[423455213,1780133442000,-479.55,0.00014999,2]
[423455227,1780133442000,-363.82,0.00014999,2]
[423455229,1780133442000,-500.0,0.00014999,2]
[423455230,1780133442000,-443.8,0.00014999,2]
[423455228,1780133442000,-500.0,0.00014999,2]
[423455225,1780133442000,-4324.53,0.00014999,2]
[423455231,1780133442000,-960399.83193397,0.00015,2]
[423455223,1780133442000,-4324.53,0.00014999,2]
[423455226,1780133442000,-4324.69194445,0.00014999,2]
[423455221,1780133442000,-4324.53,0.00014999,2]
[423455222,1780133442000,-338.9668459,0.00014999,2]
[423455215,1780133442000,-4324.53,0.00014999,2]
[423455220,1780133442000,-4324.53,0.00014999,2]
[423455219,1780133442000,-4324.53,0.00014999,2]
[423455218,1780133442000,-4324.53,0.00014999,2]
[423455214,1780133442000,-4324.53,0.00014999,2]
[423455212,1780133442000,-500.0,0.00014999,2]
[423455224,1780133442000,-4324.53,0.00014999,2]
[423455242,1780133443000,-290.59856355,0.00015,2]
[423455243,1780133443000,-1201.94004882,0.00015,2]
[423455244,1780133444000,-440.36629044,0.00015,2]
[423455245,1780133444000,-541.63990818,0.00015,2]
[423455248,1780133444000,-533.0,0.00015,2]
[423455246,1780133444000,-40983.21194901,0.00015,2]
[423455249,1780133444000,-422.1242397,0.00015,2]
[423455247,1780133444000,-12511.99560179,0.00015,2]
[423455256,1780133445000,-609.76852916,0.00015,2]
[423455255,1780133445000,-1017.12352263,0.00015,2]
[423455254,1780133445000,-1296.09290658,0.00015,2]
[423455253,1780133445000,-6947.59714692,0.00015,2]
[423455251,1780133445000,-1356.0,0.00014887,2]
[423455252,1780133445000,-8994.09060034,0.00015,2]
[423455250,1780133445000,-374.33575661,0.00015,2]
[423455262,1780134154000,206.6,0.00015,120]
[423455319,1780134541000,1000.0,0.00028079,120]
[423455320,1780134549000,100429.26433937,0.0002807,120]
[423455326,1780134631000,-23.32535767,0.00012157,2]
[423455323,1780134631000,-152.0,0.00011591,7]
[423455324,1780134631000,-175.02,0.00011795,2]
[423455325,1780134631000,-151.69464233,0.00012157,2]
[423455328,1780134631000,-166.67464234,0.00012414,2]
[423455327,1780134631000,-250.0,0.00012271,2]
[423455335,1780134631000,-200.0,0.00012539,2]
[423455330,1780134631000,-175.02,0.00012416,2]
[423455329,1780134631000,-83.32535766,0.00012414,2]
[423455334,1780134631000,-575.74,0.00012512,2]
[423455336,1780134631000,-498.45,0.00012594,2]
[423455332,1780134631000,-228.61514197,0.00012476,2]
[423455333,1780134631000,-2000.0,0.00012477,2]
[423455331,1780134631000,-155.26,0.00012445,2]
[423455369,1780134632000,-500.0,0.00013325,2]
[423455365,1780134632000,-500.0,0.00013325,2]
[423455403,1780134632000,-150.0,0.00013424,2]
[423455366,1780134632000,-500.0,0.00013325,2]
[423455378,1780134632000,-500.0,0.00013424,2]
[423455370,1780134632000,-500.0,0.00013325,2]
[423455373,1780134632000,-500.0,0.00013342,2]
[423455371,1780134632000,-500.0,0.00013325,2]
[423455372,1780134632000,-632.91659185,0.00013325,2]
[423455374,1780134632000,-250.0,0.00013372,2]
[423455384,1780134632000,-500.0,0.00013424,2]
[423455376,1780134632000,-500.0,0.00013424,2]
[423455375,1780134632000,-150.0,0.00013423,2]
[423455392,1780134632000,-150.0,0.00013424,2]
[423455388,1780134632000,-150.0,0.00013424,2]
[423455377,1780134632000,-500.0,0.00013424,2]
[423455390,1780134632000,-150.0,0.00013424,2]
[423455380,1780134632000,-500.0,0.00013424,2]
[423455381,1780134632000,-500.0,0.00013424,2]
[423455394,1780134632000,-150.0,0.00013424,2]
[423455395,1780134632000,-248.8833514,0.00013424,2]
[423455398,1780134632000,-150.0,0.00013424,2]
[423455397,1780134632000,-150.0,0.00013424,2]
[423455396,1780134632000,-209.03326579,0.00013424,2]
[423455368,1780134632000,-500.0,0.00013325,2]
[423455386,1780134632000,-156.33389924,0.00013424,2]
[423455367,1780134632000,-500.0,0.00013325,2]
[423455339,1780134632000,-150.0,0.00012677,2]
[423455363,1780134632000,-500.0,0.00013325,2]
[423455404,1780134632000,-171.5958302,0.00013424,2]
[423455341,1780134632000,-498.45,0.00012909,2]
[423455338,1780134632000,-1056.56,0.00012667,2]
[423455337,1780134632000,-1000.0,0.00012604,2]
[423455340,1780134632000,-160.09,0.00012716,2]
[423455352,1780134632000,-150.0,0.00013325,2]
[423455343,1780134632000,-167.07,0.00013043,2]
[423455342,1780134632000,-175.02,0.00013037,2]
[423455349,1780134632000,-150.0,0.00013325,2]
[423455347,1780134632000,-500.0,0.00013325,2]
[423455346,1780134632000,-500.0,0.00013325,2]
[423455344,1780134632000,-1200.0,0.00013223,2]
[423455364,1780134632000,-500.0,0.00013325,2]
[423455345,1780134632000,-498.45,0.00013224,2]
[423455350,1780134632000,-150.0,0.00013325,2]
[423455351,1780134632000,-150.0,0.00013325,2]
[423455353,1780134632000,-156.87114969,0.00013325,2]
[423455354,1780134632000,-500.0,0.00013325,2]
[423455356,1780134632000,-403.39597363,0.00013325,2]
[423455358,1780134632000,-500.0,0.00013325,2]
[423455359,1780134632000,-500.0,0.00013325,2]
[423455355,1780134632000,-500.0,0.00013325,2]
[423455357,1780134632000,-500.0,0.00013325,2]
[423455360,1780134632000,-500.0,0.00013325,2]
[423455361,1780134632000,-500.0,0.00013325,2]
[423455362,1780134632000,-500.0,0.00013325,2]
[423455348,1780134632000,-158.79341703,0.00013325,2]
[423455406,1780134632000,-150.0,0.00013488,2]
[423455433,1780134632000,-594.0,0.00013525,2]
[423455399,1780134632000,-150.0,0.00013424,2]
[423455432,1780134632000,-594.0,0.00013525,2]
[423455434,1780134632000,-594.0,0.00013525,2]
[423455435,1780134632000,-594.0,0.00013525,2]
[423455437,1780134632000,-594.0,0.00013525,2]
[423455439,1780134632000,-594.0,0.00013525,2]
[423455438,1780134632000,-594.0,0.00013525,2]
[423455440,1780134632000,-594.0,0.00013525,2]
[423455436,1780134632000,-594.0,0.00013525,2]
[423455443,1780134632000,-594.0,0.00013525,2]
[423455454,1780134632000,-384.02442427,0.00013599,2]
[423455447,1780134632000,-150.0,0.00013585,2]
[423455444,1780134632000,-594.0,0.00013525,2]
[423455453,1780134632000,-2092.75179619,0.00013599,2]
[423455450,1780134632000,-500.0,0.00013599,2]
[423455446,1780134632000,-150.0,0.00013553,2]
[423455445,1780134632000,-498.45,0.00013539,2]
[423455451,1780134632000,-5000.0,0.00013599,2]
[423455448,1780134632000,-3975.73957893,0.00013589,2]
[423455452,1780134632000,-2500.0,0.00013599,2]
[423455455,1780134632000,-5273.3405474,0.00013599,2]
[423455456,1780134632000,-61018.4239589,0.000136,2]
[423455458,1780134632000,-150.0,0.00013603,2]
[423455457,1780134632000,-20272.5977411,0.000136,2]
[423455459,1780134632000,-857.96,0.00013608,2]
[423455405,1780134632000,-175.02,0.00013436,2]
[423455442,1780134632000,-594.0,0.00013525,2]
[423455430,1780134632000,-594.0,0.00013525,2]
[423455449,1780134632000,-4388.57469881,0.00013598,2]
[423455431,1780134632000,-594.0,0.00013525,2]
[423455402,1780134632000,-150.0,0.00013424,2]
[423455441,1780134632000,-594.0,0.00013525,2]
[423455400,1780134632000,-154.56670401,0.00013424,2]
[423455401,1780134632000,-150.0,0.00013424,2]
[423455415,1780134632000,-162.91196204,0.00013524,2]
[423455416,1780134632000,-500.0,0.00013524,2]
[423455413,1780134632000,-154.61916634,0.00013503,2]
[423455414,1780134632000,-150.0,0.0001352,2]
[423455417,1780134632000,-390.67189201,0.00013524,2]
[423455409,1780134632000,-150.0,0.00013488,2]
[423455412,1780134632000,-150.0,0.00013488,2]
[423455411,1780134632000,-150.0,0.00013488,2]
[423455410,1780134632000,-150.0,0.00013488,2]
[423455408,1780134632000,-150.0,0.00013488,2]
[423455423,1780134632000,-594.0,0.00013525,2]
[423455425,1780134632000,-594.0,0.00013525,2]
[423455407,1780134632000,-150.0,0.00013488,2]
[423455424,1780134632000,-594.0,0.00013525,2]
[423455422,1780134632000,-594.0,0.00013525,2]
[423455426,1780134632000,-594.0,0.00013525,2]
[423455420,1780134632000,-500.0,0.00013524,2]
[423455419,1780134632000,-500.0,0.00013524,2]
[423455429,1780134632000,-594.0,0.00013525,2]
[423455418,1780134632000,-193.11211231,0.00013524,2]
[423455427,1780134632000,-594.0,0.00013525,2]
[423455421,1780134632000,-594.0,0.00013525,2]
[423455428,1780134632000,-594.0,0.00013525,2]
[423455494,1780134633000,-500.0,0.00013698,2]
[423455499,1780134633000,-500.0,0.00013698,2]
[423455497,1780134633000,-500.0,0.00013698,2]
[423455500,1780134633000,-500.0,0.00013698,2]
[423455498,1780134633000,-500.0,0.00013698,2]
[423455487,1780134633000,-500.0,0.00013698,2]
[423455492,1780134633000,-500.0,0.00013698,2]
[423455493,1780134633000,-500.0,0.00013698,2]
[423455495,1780134633000,-500.0,0.00013698,2]
[423455491,1780134633000,-500.0,0.00013698,2]
[423455501,1780134633000,-500.0,0.00013698,2]
[423455496,1780134633000,-327.92067223,0.00013698,2]
[423455503,1780134633000,-500.0,0.00013698,2]
[423455514,1780134633000,-500.0,0.00013698,2]
[423455506,1780134633000,-607.41,0.00013698,2]
[423455507,1780134633000,-500.0,0.00013698,2]
[423455502,1780134633000,-500.0,0.00013698,2]
[423455504,1780134633000,-500.0,0.00013698,2]
[423455505,1780134633000,-607.41,0.00013698,2]
[423455510,1780134633000,-500.0,0.00013698,2]
[423455511,1780134633000,-500.0,0.00013698,2]
[423455509,1780134633000,-500.0,0.00013698,2]
[423455512,1780134633000,-500.0,0.00013698,2]
[423455508,1780134633000,-500.0,0.00013698,2]
[423455519,1780134633000,-4324.53,0.00013698,2]
[423455485,1780134633000,-500.0,0.00013698,2]
[423455513,1780134633000,-500.0,0.00013698,2]
[423455489,1780134633000,-500.0,0.00013698,2]
[423455466,1780134633000,-150.0,0.00013654,2]
[423455484,1780134633000,-500.0,0.00013698,2]
[423455516,1780134633000,-218.71839433,0.00013698,2]
[423455464,1780134633000,-215.58360558,0.00013642,2]
[423455460,1780134633000,-617.84,0.00013608,2]
[423455465,1780134633000,-150.0,0.00013651,2]
[423455462,1780134633000,-150.0,0.00013618,2]
[423455461,1780134633000,-554.96,0.00013608,2]
[423455463,1780134633000,-150.0,0.00013638,2]
[423455467,1780134633000,-200.70074596,0.00013669,2]
[423455471,1780134633000,-500.0,0.00013698,2]
[423455468,1780134633000,-150.0,0.00013683,2]
[423455469,1780134633000,-151.0,0.00013696,2]
[423455470,1780134633000,-500.0,0.00013698,2]
[423455488,1780134633000,-512.05018733,0.00013698,2]
[423455472,1780134633000,-500.0,0.00013698,2]
[423455477,1780134633000,-500.0,0.00013698,2]
[423455476,1780134633000,-500.0,0.00013698,2]
[423455475,1780134633000,-500.0,0.00013698,2]
[423455473,1780134633000,-500.0,0.00013698,2]
[423455478,1780134633000,-500.0,0.00013698,2]
[423455480,1780134633000,-500.0,0.00013698,2]
[423455481,1780134633000,-500.0,0.00013698,2]
[423455490,1780134633000,-500.0,0.00013698,2]
[423455479,1780134633000,-500.0,0.00013698,2]
[423455483,1780134633000,-500.0,0.00013698,2]
[423455482,1780134633000,-500.0,0.00013698,2]
[423455486,1780134633000,-500.0,0.00013698,2]
[423455474,1780134633000,-500.0,0.00013698,2]
[423455518,1780134633000,-4324.53,0.00013698,2]
[423455566,1780134633000,-500.0,0.00013699,2]
[423455523,1780134633000,-500.0,0.00013698,2]
[423455551,1780134633000,-151.0,0.00013699,2]
[423455552,1780134633000,-151.0,0.00013699,2]
[423455554,1780134633000,-151.0,0.00013699,2]
[423455550,1780134633000,-151.0,0.00013699,2]
[423455557,1780134633000,-151.0,0.00013699,2]
[423455553,1780134633000,-151.0,0.00013699,2]
[423455558,1780134633000,-151.0,0.00013699,2]
[423455555,1780134633000,-151.0,0.00013699,2]
[423455556,1780134633000,-151.0,0.00013699,2]
[423455560,1780134633000,-151.0,0.00013699,2]
[423455564,1780134633000,-500.0,0.00013699,2]
[423455562,1780134633000,-4324.53,0.00013699,2]
[423455561,1780134633000,-279.960539,0.00013699,2]
[423455569,1780134633000,-314.67788278,0.00013699,2]
[423455571,1780134633000,-477.13424457,0.00013699,2]
[423455563,1780134633000,-500.0,0.00013699,2]
[423455567,1780134633000,-500.0,0.00013699,2]
[423455570,1780134633000,-500.0,0.00013699,2]
[423455573,1780134633000,-500.0,0.00013699,2]
[423455576,1780134633000,-1196.0305,0.000137,2]
[423455568,1780134633000,-500.0,0.00013699,2]
[423455572,1780134633000,-500.0,0.00013699,2]
[423455575,1780134633000,-500.0,0.00013699,2]
[423455574,1780134633000,-477.13424457,0.00013699,2]
[423455577,1780134633000,-33234.4339,0.000137,2]
[423455517,1780134633000,-4324.53,0.00013698,2]
[423455565,1780134633000,-192.02155881,0.00013699,2]
[423455545,1780134633000,-500.0,0.00013699,2]
[423455559,1780134633000,-151.0,0.00013699,2]
[423455544,1780134633000,-500.0,0.00013699,2]
[423455520,1780134633000,-4324.53,0.00013698,2]
[423455515,1780134633000,-4105.81160567,0.00013698,2]
[423455546,1780134633000,-151.0,0.00013699,2]
[423455522,1780134633000,-500.0,0.00013698,2]
[423455521,1780134633000,-500.0,0.00013698,2]
[423455526,1780134633000,-500.0,0.00013698,2]
[423455536,1780134633000,-500.0,0.00013698,2]
[423455525,1780134633000,-500.0,0.00013698,2]
[423455530,1780134633000,-500.0,0.00013698,2]
[423455534,1780134633000,-500.0,0.00013698,2]
[423455527,1780134633000,-500.0,0.00013698,2]
[423455532,1780134633000,-500.0,0.00013698,2]
[423455528,1780134633000,-410.30161227,0.00013698,2]
[423455535,1780134633000,-500.0,0.00013698,2]
[423455524,1780134633000,-500.0,0.00013698,2]
[423455531,1780134633000,-295.37631974,0.00013698,2]
[423455529,1780134633000,-500.0,0.00013698,2]
[423455549,1780134633000,-151.0,0.00013699,2]
[423455542,1780134633000,-150.0,0.00013699,2]
[423455547,1780134633000,-151.0,0.00013699,2]
[423455538,1780134633000,-500.0,0.00013698,2]
[423455540,1780134633000,-166.66,0.00013699,2]
[423455543,1780134633000,-400.0,0.00013699,2]
[423455548,1780134633000,-151.0,0.00013699,2]
[423455539,1780134633000,-500.0,0.00013698,2]
[423455537,1780134633000,-500.0,0.00013698,2]